Cogmind - Beta 10.2 @@@ ROGUE MODE // 2020.12.12 @ 19:12:41 Player: Demise Result: Destroyed by 8R-AWN with 8R-AWN's Boregun Performance ------------- Evolutions (1) 500 Regions Visited (5) 1000 Robots Destroyed (96) 480 Value Destroyed (1819) 1819 Prototype IDs (29) 580 Alien Tech Used (0) 0 Bonus (727) 727 TOTAL SCORE: 5106 Bonus ------- High Alert Combat Kills 242 Follower Combat Kills 185 Aligned with FarCom 300 Cogmind --------- Core Integrity 0/400 Matter 45/450 Energy 265/265 System Corruption 0% Temperature Cool (4) Movement Rolling (110) Ox2 Location -9/Exiles Parts ------- > --- POWER (1) -------- Improved Ion Engine > --- PROPULSION (2) --- Armored Wheel Armored Wheel > --- UTILITY (4) ------ High-capacity Storage Unit Large Matter Pod Targeting Computer Light Armor Plating > --- WEAPON (2) ------- Autogun Improved Assault Rifle > --- INVENTORY (12) --- Armored Wheel Assault Rifle Heavy Assault Rifle Heavy Assault Rifle Autogun Mini Grenade Launcher Peak State ------------ > --- POWER ------------ Cooled Ion Engine > --- PROPULSION ------- Light Treads Light Treads > --- UTILITY ---------- High-capacity Storage Unit High-capacity Storage Unit High-capacity Storage Unit Targeting Computer > --- WEAPON ----------- Heavy Assault Rifle Improved Assault Rifle > --- INVENTORY -------- Improved Ion Engine Nuclear Core Armored Wheel Armored Wheel Armored Wheel Superbattery Modified TNC Core Shielding Light Armor Plating Light Armor Plating Light Armor Plating Assault Rifle Assault Rifle Light Assault Rifle Heavy Assault Rifle Autogun Autogun Improved Assault Rifle XL Autogun Array Mini Grenade Launcher [Rating: 22] Favorites ----------- Power Cooled Ion Engine Engine Cooled Ion Engine Power Core Light Nuclear Core Propulsion Light Treads Treads Light Treads Leg Aluminum Leg Wheel Armored Wheel Utility High-capacity Storage Unit Storage High-capacity Storage Unit Processor Targeting Computer Protection Core Shielding Weapon Improved Assault Rifle Energy Gun EM Pulse Gun Ballistic Gun Improved Assault Rifle Ballistic Cannon Light Cannon Launcher Mini Grenade Launcher Build | -11 -10 -10 -9 -9 -9 ------- Run | Scr Mat Min Mat Min Exi Slots Evolved 2 | . . . 2 . . Power . | . . . . . . Propulsion . | . . . . . . Utility 2 | . . . 2 . . Weapon . | . . . . . . Parts Attached 72 | 3 13 5 31 4 16 Power 7 | . 1 1 4 . 1 Engine 5 | . 1 1 2 . 1 Core 2 | . . . 2 . . Reactor . | . . . . . . Propulsion 18 | 2 1 1 9 3 2 Treads 16 | 2 1 1 9 3 . Leg . | . . . . . . Wheel 2 | . . . . . 2 Hover . | . . . . . . Flight . | . . . . . . Utility 23 | 1 6 . 5 1 10 Device . | . . . . . . Storage 11 | 1 6 . . . 4 Processor 1 | . . . . . 1 Hackware . | . . . . . . Protection 11 | . . . 5 1 5 Artifact . | . . . . . . Weapon 24 | . 5 3 13 . 3 Energy Gun 4 | . 4 . . . . Energy Cannon . | . . . . . . Ballistic Gun 14 | . . 2 10 . 2 Ballistic Cannon 3 | . 1 1 1 . . Launcher 3 | . . . 2 . 1 Special Weapon . | . . . . . . Impact Weapon . | . . . . . . Slashing Weapon . | . . . . . . Piercing Weapon . | . . . . . . Special Melee Weapon . | . . . . . . Unidentified Prototypes 2 | . . . 2 . . Parts Lost 22 | . 1 3 11 . 7 Power 5 | . . 1 3 . 1 Propulsion 5 | . . 1 2 . 2 Utility 5 | . . . 2 . 3 Weapon 7 | . 1 1 4 . 1 Highest Loss Streak 7 | . 1 1 4 . 7 Average Slot Usage (%) 99 | . 99 99 97 100 98 Engine 11 | . 14 14 7 11 11 Treads 23 | . 28 27 21 22 21 Storage 25 | . 28 28 22 22 28 Processor 1 | . . . . . 7 Protection 10 | . . . 21 22 6 Energy Gun 3 | . 23 . . . . Ballistic Gun 13 | . 3 2 16 22 21 Ballistic Cannon 6 | . 1 25 5 . . Naked Turns . | . . . . . . Heaviest Build 142 | 11 74 75 87 86 142 Greatest Support 40 | 40 40 40 40 40 40 Greatest Overweight (x) 3 | . 1 3 3 2 3 Average Overweight (x) 1 | . . 1 1 2 1 Largest Inventory Capacity 36 | 6 20 20 20 20 36 Average Capacity 20 | 6 17 20 20 20 24 Most Carried 31 | 6 20 20 20 20 31 Average Carried 18 | 5 17 19 18 19 19 Final Capacity 20 | 6 20 20 20 20 12 Final Carried 20 | 6 20 20 20 20 6 Class Distribution -------------------- 86% | Hauler-Mutant 10% | Mutant Dominant Class ---------------- Hauler-Mutant | -10/Materials Hauler-Mutant | -10/Mines Hauler-Mutant | -9/Materials Hauler-Mutant | -9/Mines Hauler-Mutant | -9/Exiles Resources | -11 -10 -10 -9 -9 -9 ----------- Run | Scr Mat Min Mat Min Exi Matter Collected 2068 | 351 166 299 896 166 190 Remotely . | . . . . . . Salvage Created 2633 | 146 319 152 1738 262 16 Parts 197 | 11 31 19 109 27 . Haulers Intercepted 5 | . 1 . 4 . . Recyclers Shooed 3 | . 1 . 2 . . Parts Field Recycled . | . . . . . . Retrieved Matter . | . . . . . . Parts Self-Destructed . | . . . . . . Prevented . | . . . . . . Kills | -11 -10 -10 -9 -9 -9 ------- Run | Scr Mat Min Mat Min Exi Combat Hostiles Destroyed 67 | . 10 10 35 7 5 Guns 41 | . 8 1 24 7 1 Cannons 15 | . . 8 7 . . AOE 11 | . 2 1 4 . 4 Classes Destroyed 10 | 3 4 . 2 . 1 Worker 9 | 2 2 . 3 2 . Tunneler 7 | 3 . 3 . 1 . Hauler 5 | . 1 . 4 . . Recycler 5 | 1 . . 4 . . Operator 1 | . . . 1 . . Watcher 7 | . 3 . 4 . . Swarmer 29 | . 9 9 7 4 . Grunt 27 | . 1 1 22 3 . Sentry 6 | . . . 6 . . Assembled 5 | . . . . . 5 Best Kill Streak 9 | 2 5 5 9 4 5 Combat Bots Only 5 | . 3 5 5 4 5 Max Kills in Single Turn 3 | 1 2 2 3 1 3 Gunslinging 1 | . 1 . . . . Exploded 3 | . 1 1 2 . 3 Melee . | . . . . . . Uniques/NPCs Destroyed . | . . . . . . Combat | -11 -10 -10 -9 -9 -9 -------- Run | Scr Mat Min Mat Min Exi Damage Taken 4088 | . 366 624 1798 254 1046 Core 585 | . 56 112 189 . 228 Absorbed by Shields . | . . . . . . Core Remaining (%) 66 | 100 . 32 . . . Volleys Fired 292 | 19 32 39 147 15 40 Largest 2 | 2 2 2 2 2 2 Hottest 80 | 40 80 75 62 46 46 Shots Fired 577 | 38 64 78 293 30 74 Gun 431 | 38 57 9 227 30 70 Cannon 139 | . 7 69 63 . . Launcher 7 | . . . 3 . 4 Special . | . . . . . . Kinetic 515 | 38 11 76 290 30 70 Thermal . | . . . . . . Explosive 7 | . . . 3 . 4 Electromagnetic 55 | . 53 2 . . . Robot Hit Streak 34 | 11 5 6 22 18 34 Robot Miss Streak 4 | 2 4 3 3 2 2 Penetration Max . | . . . . . . Secondary Targets 5 | . 1 . 1 3 . Max Gunslinging Chain 1 | . 1 . 1 1 . Shots Hit Robots 420 | 30 34 46 222 23 65 Core Hits 161 | 10 20 17 87 13 14 Critical Hits 3 | . . 1 2 . . Critical Kills 1 | . . . 1 . . Critical Parts Destroyed 2 | . . 1 1 . . Melee Attacks . | . . . . . . Impact . | . . . . . . Slashing . | . . . . . . Piercing . | . . . . . . Sneak Attacks . | . . . . . . Combat Hostiles . | . . . . . . Follow-up Attacks . | . . . . . . Damage Inflicted 6476 | 335 669 909 2931 369 1263 Guns 3925 | 335 456 45 1792 369 928 Cannons 1559 | . 49 619 891 . . Explosions 982 | . 164 245 238 . 335 Melee . | . . . . . . Ramming 10 | . . . 10 . . Kinetic 5028 | 335 59 654 2683 369 928 Thermal 409 | . 164 245 . . . Explosive 573 | . . . 238 . 335 Electromagnetic 456 | . 446 10 . . . Impact . | . . . . . . Slashing . | . . . . . . Piercing . | . . . . . . Highest Corruption . | . . . . . . Average Corruption . | . . . . . . Corruption Purged . | . . . . . . Overload Shots . | . . . . . . Overflow Damage 123 | . 3 58 30 . 32 Projectiles . | . . . . . . Explosions 115 | . 3 58 22 . 32 Melee 8 | . . . 8 . . Knockbacks 10 | . . 8 2 . . Impact . | . . . . . . Kinetic 9 | . . 7 2 . . Secondary 1 | . . 1 . . . Self-Inflicted Damage 108 | . 70 38 . . . Shots 3 | . 2 1 . . . Rammed 1 | . . . 1 . . Targets Rammed 1 | . . . 1 . . Kicked . | . . . . . . Crushed . | . . . . . . Highest Temperature 214 | . 214 76 26 9 16 Average Temperature 22 | . 57 24 6 5 3 Received Heat Transfer 1032 | . 78 96 747 111 . Siege Activations . | . . . . . . Robots Corrupted . | . . . . . . Combat Hostiles . | . . . . . . Parts Fried 4 | . 2 . 2 . . Impact Corruptions 1 | . . . 1 . . Robots Melted . | . . . . . . Combat Hostiles . | . . . . . . Parts Melted . | . . . . . . Heat Transferred 550 | . 250 300 . . . Parts Sabotaged . | . . . . . . Parts Stolen . | . . . . . . Parts Stripped . | . . . . . . Power Chain Reactions 4 | . 3 1 . . . Missiles Intercepted . | . . . . . . Alert | -11 -10 -10 -9 -9 -9 ------- Run | Scr Mat Min Mat Min Exi Peak Influence 908 | 30 160 300 908 401 . Initial 321 | . 19 48 23 321 . Average 289 | 17 59 127 570 291 . Maximum Alert Level 3 | . . 1 3 2 . Low Security (%) 49 | 100 100 71 12 27 . Level 1 24 | . . 28 14 59 . Level 2 13 | . . . 34 13 . Level 3 12 | . . . 39 . . Level 4 . | . . . . . . Level 5 . | . . . . . . High Security . | . . . . . . Max Security . | . . . . . . Squads Dispatched 8 | . 1 . 7 . . Investigation 6 | . 1 . 5 . . Extermination . | . . . . . . Reinforcement 2 | . . . 2 . . Assault . | . . . . . . Garrison . | . . . . . . Intercept . | . . . . . . Construction Impeded . | . . . . . . Haulers Reinforced . | . . . . . . Stealth | -11 -10 -10 -9 -9 -9 --------- Run | Scr Mat Min Mat Min Exi Distress Signals 5 | . . . 5 . . Communications Jammed . | . . . . . . Distress Signals . | . . . . . . Times Spotted 115 | . 22 21 58 9 5 Peak Tracking Total 11 | . 4 4 11 3 9 Tactical Retreats 14 | . 3 4 7 . . Traps | -11 -10 -10 -9 -9 -9 ------- Run | Scr Mat Min Mat Min Exi Traps Triggered 1 | . . . 1 . . Indirectly . | . . . . . . Trap Hack Attempts . | . . . . . . Triggered . | . . . . . . Disarmed . | . . . . . . Reprogrammed . | . . . . . . Reused . | . . . . . . Traps Extracted . | . . . . . . Installed . | . . . . . . Triggered . | . . . . . . Exploded 3 | . . . . . 3 Machines | -11 -10 -10 -9 -9 -9 ---------- Run | Scr Mat Min Mat Min Exi Machines Disabled 9 | . . 1 4 . 4 Max in Single Turn 2 | . . 1 1 . 2 Machines Sabotaged . | . . . . . . Garrisons Compromised . | . . . . . . Overloaded Fab Kills . | . . . . . . Fab Network Shutdowns . | . . . . . . Hacking | -11 -10 -10 -9 -9 -9 --------- Run | Scr Mat Min Mat Min Exi Machines Accessed 18 | . 6 1 9 . 2 Terminals 13 | . 6 1 6 . . Fabricators . | . . . . . . Repair Stations . | . . . . . . Recycling Units 2 | . . . 2 . . Scanalyzers 1 | . . . 1 . . Garrison Access . | . . . . . . Total Hacks 81 | . 21 2 34 . 24 Successful 58 | . 16 . 18 . 24 Failed 21 | . 4 2 15 . . Catastrophic . | . . . . . . Database Lockouts 2 | . 1 . 1 . . Manual 45 | . 15 2 27 . 1 Terminals 51 | . 21 2 28 . . Fabricators . | . . . . . . Repair Stations . | . . . . . . Recycling Units 4 | . . . 4 . . Scanalyzers 2 | . . . 2 . . Garrison Access . | . . . . . . Terminal Hacks 41 | . 9 . 8 . 24 Record 23 | . . . . . 23 Part Schematic 1 | . 1 . . . . Robot Analysis 4 | . . . 4 . . Prototype ID Bank 3 | . 2 . 1 . . Level Access Points 1 | . 1 . . . . Branch Access Points 2 | . 1 . 1 . . Locate Traps 1 | . 1 . . . . Recall Investigation 2 | . 1 . 1 . . Hauler Manifests 2 | . 1 . 1 . . Zone Layout 1 | . 1 . . . . EX-Prototype ID Bank 1 | . . . . . 1 Fabricator Hacks . | . . . . . . Repair Station Hacks . | . . . . . . Recycling Unit Hacks 2 | . . . 2 . . Report Inventory 2 | . . . 2 . . Scanalyzer 2 | . . . 2 . . Insert Component 1 | . . . 1 . . Analyze 1 | . . . 1 . . Garrison Access Hacks . | . . . . . . Unauthorized Hacks 13 | . 7 . 6 . . Terminals 11 | . 7 . 4 . . Track 4 | . 2 . 2 . . Assimilate 1 | . 1 . . . . Botnet 6 | . 4 . 2 . . Fabricators . | . . . . . . Repair Stations . | . . . . . . Recycling Units 2 | . . . 2 . . Tunnel 2 | . . . 2 . . Scanalyzers . | . . . . . . Garrison Access . | . . . . . . Data Cores Recovered . | . . . . . . Used . | . . . . . . Hacking Detections 13 | . 5 1 7 . . Full Trace Events 5 | . 2 1 2 . . Feedback Events . | . . . . . . Feedback Blocked . | . . . . . . Robot Schematics Acquired . | . . . . . . Robots Built . | . . . . . . Matter . | . . . . . . Time . | . . . . . . Total Robot Build Rating . | . . . . . . Part Schematics Acquired 2 | . 1 . 1 . . Parts Built . | . . . . . . Matter . | . . . . . . Time . | . . . . . . Total Part Build Rating . | . . . . . . Parts Repaired . | . . . . . . Time . | . . . . . . Parts Recycled . | . . . . . . Recycled Matter . | . . . . . . Retrieved Matter . | . . . . . . Retrieved Components . | . . . . . . Parts Scanalyzed 1 | . . . 1 . . Part Schematics Acquired 1 | . . . 1 . . Parts Damaged 1 | . . . 1 . . Bothacking | -11 -10 -10 -9 -9 -9 ------------ Run | Scr Mat Min Mat Min Exi Used RIF Installer . | . . . . . . Robots Hacked . | . . . . . . Non-combat . | . . . . . . Combat . | . . . . . . Robot Hacks Applied . | . . . . . . Relay Couplers Released . | . . . . . . Robots Rewired . | . . . . . . Allies Hacked . | . . . . . . Hacks Repelled . | . . . . . . Allies | -11 -10 -10 -9 -9 -9 -------- Run | Scr Mat Min Mat Min Exi Total Allies 6 | . 1 3 . 2 . Largest Group 3 | . 1 3 . 2 1 Highest-Rated Group 45 | . 10 40 . 45 31 Highest-Rated Ally 31 | . 10 16 . 31 31 Total Orders . | . . . . . . Ally Attacks 25 | . . 22 . 3 . Total Damage 260 | . . 219 . 41 . Kills 7 | . . 6 . 1 . Allies Corrupted . | . . . . . . Allies Melted . | . . . . . . Intel | -11 -10 -10 -9 -9 -9 ------- Run | Scr Mat Min Mat Min Exi Robot Analysis Total 4 | . . . 4 . . Derelict Logs Recovered 3 | . . 1 . 2 . Drone Launches . | . . . . . . Drone Recoveries . | . . . . . . Exploration | -11 -10 -10 -9 -9 -9 ------------- Run | Scr Mat Min Mat Min Exi Turns Passed 6597 | 142 1005 1300 1695 1097 1358 Spaces Moved 2914 | 44 487 644 628 520 591 Core . | . . . . . . Treads 2910 | 40 487 644 628 520 591 Legs 4 | 4 . . . . . Wheels . | . . . . . . Hover . | . . . . . . Flight . | . . . . . . Fastest Speed 120 | 120 160 180 180 200 180 Average Speed 188 | 156 174 180 191 200 196 Slowest Speed 220 | 160 180 220 220 200 220 Overloaded Moves . | . . . . . . Propulsion Burnouts . | . . . . . . Robots Hopped . | . . . . . . Cave-ins Triggered . | . . . . . . Exploration Rate (%) 66 | 2 63 100 65 99 69 Regions Visited 5 Branch Regions 3 Pre-discovered Areas 4 | . . 1 2 . 1 Known Exits Taken 3 | . 1 1 1 . . Unknown Exits Taken 2 | 1 . . . 1 . Scrap Searched 4 | . . 3 . 1 . Spaces Dug . | . . . . . . Terrain Destroyed 55 | . 7 18 10 . 20 Melee . | . . . . . . Projectile . | . . . . . . AOE 55 | . 7 18 10 . 20 Terrain Rammed . | . . . . . . Walls Destroyed . | . . . . . . Machines Disabled . | . . . . . . Actions | -11 -10 -10 -9 -9 -9 --------- Run | Scr Mat Min Mat Min Exi Total 3541 | 84 587 712 873 554 731 Wait 98 | 15 13 10 19 4 37 Move 2909 | 43 486 643 627 519 591 Hop . | . . . . . . Pick Up 75 | 2 23 8 22 4 16 Fast Attach 19 | 1 4 2 7 1 4 Attach 26 | 2 1 3 10 . 10 Detach 9 | . 4 . 1 . 4 Swap 27 | . 8 . 14 3 2 Drop 85 | 2 16 7 25 8 27 Fire 292 | 19 32 39 147 15 40 Melee . | . . . . . . Ram . | . . . . . . Kick . | . . . . . . Crush 1 | . . . 1 . . Escape Stasis . | . . . . . . Rewire . | . . . . . . Trap . | . . . . . . Miscellaneous . | . . . . . . Route ------- -11/Scrapyard -10/Materials (discovered 5 exits: *Mat x3 / *Min x2) -10/Mines (discovered 2 exits: *Mat x2) -9/Materials (discovered 4 exits: *Mat x2 / *Min x2) -9/Mines (discovered 3 exits: *Mat x2 / *Exi) -9/Exiles (discovered 2 exits: [*Min x2]) History --------- Turn | Location | Event 21 | -11/Scrapyard | Discovered new exit (range 3) 143 | -11/Scrapyard | Entered Materials 159 | -10/Materials | Discovered new exit (range 14) 252 | -10/Materials | Discovered new exit (range 15) 361 | -10/Materials | Central database locked down 362 | -10/Materials | Build established: Mutant 382 | -10/Materials | Discovered new exit (range 10) 700 | -10/Materials | Identified exit to Mines 700 | -10/Materials | Identified exit to Materials 861 | -10/Materials | Build established: Hauler-Mutant 1148 | -10/Materials | Entered Mines 1307 | -10/Mines | Assisted by bots powering up and referring to "LRC-V3" 1573 | -10/Mines | Learned location of 1 exit from Materials 1584 | -10/Mines | Discovered exit to Materials (range 8) 1585 | -10/Mines | Learned location of Storage (-7) 2006 | -10/Mines | Core integrity fell below 50% 2032 | -10/Mines | Discovered exit to Materials (range 9) 2448 | -10/Mines | Entered Materials 2448 | -9/Materials | Evolved 2 slots: Utility x2 2449 | -9/Materials | Identified exit to Materials 2812 | -9/Materials | Lost 3 parts (1p1u1w) 2857 | -9/Materials | Lost 3 parts (1n2w) 3038 | -9/Materials | Lost 4 parts (1p1n1u1w) 3280 | -9/Materials | Identified exit to Mines 3689 | -9/Materials | Discovered exit to Materials (range 3) 4041 | -9/Materials | Central database locked down 4143 | -9/Materials | Entered Mines 4207 | -9/Mines | Learned location of 1 exit from Materials 4368 | -9/Mines | Discovered exit to Materials (range 6) 4881 | -9/Mines | Discovered exit to Materials (range 10) 4903 | -9/Mines | Learned Materials terminal intel 4921 | -9/Mines | Joined a pair of Derelicts in attacking an 0b10 outpost 5232 | -9/Mines | Deemed a non-threat by the Exiles lab entrance 5232 | -9/Mines | Discovered new exit (range 5) 5240 | -9/Mines | Entered Exiles 5240 | -9/Exiles | Accompanied by 1 ally 5270 | -9/Exiles | Led the pair of lost Derelicts to a safe place 5272 | -9/Exiles | Discovered new exit (range 15) 5294 | -9/Exiles | Met 8R-AWN 5322 | -9/Exiles | Met EX-HEX 5475 | -9/Exiles | Met EX-DEC 5510 | -9/Exiles | Learned location of Zion (-7) 5639 | -9/Exiles | Discovered new exit (range 10) 5835 | -9/Exiles | Met EX-BIN 5860 | -9/Exiles | Aligned with FarCom system 5862 | -9/Exiles | Given EX-Vault access code 5903 | -9/Exiles | Opened EX-Vault 5912 | -9/Exiles | Found XL Autogun Array 5919 | -9/Exiles | Found Modified TNC 5924 | -9/Exiles | Found Superbattery 5971 | -9/Exiles | Warned to stay clear of 0b10 Research branches 6407 | -9/Exiles | Attacked by the Exiles 6509 | -9/Exiles | Core integrity fell below 50% 6586 | -9/Exiles | Core integrity fell below 20% 6598 | -9/Exiles | Destroyed by 8R-AWN with 8R-AWN's Boregun Last Messages --------------- 06556_ Penetrated by HV Slug. 06560_ Critical hit. 06560_ Lgt. Treads destroyed. 06560_ Penetrated by HV Slug. 06566_ Machine disabled. 06568_ Penetrated by HV Slug. 06568_ Critical hit. 06568_ Cld. Ion Engine destroyed. 06568_ Penetrated by HV Slug. 06573_ HV Slug penetrates Machine. 06573_ Machine disabled. 06577_ Penetrated by HV Slug. 06577_ HV Slug penetrates Earth. 06581_ Penetrated by HV Slug. 06581_ HV Slug penetrates Wall. 06585_ Penetrated by HV Slug. 06594_ Core Shielding destroyed. 06594_ Penetrated by HV Slug. 06595_ Acquired Lrg. Matter Pod. 06598_ Penetrated by HV Slug. Map ----- +----------------------------------------------------+ | ?????????????????????????????????????????????????? | | ?????????#####???????????????????????????????????? | | ????????## ##??????????????????????????????????? | | ????????# #??????????????????????????????????? | | ????????# < #??????????????????????????????????? | | ????????# ! ###????????????????????????????????? | | ????????# !!! #????????????????????????????????? | | ????????# |!=! #?????????????????????????????????? | | ????????## !!! #?????????????????????????????????? | | ?????????# [!! ##????????????????????????????????? | | ?????????## #????????????#######?????????????? | | ??????????# #######??????#!!! "#?????????????? | | ??????????# #""##?????# "#?????????????? | | ??????????## #?????# "#?????????????? | | ???????????##" ##???## ""#?????????????# | | ???????????#"" #####" ""#???????????? | | ???????????#### ##" ""#????????????" | | ??????????????## #"" #??#???????????" | | ???????????????#"## # ##?????????"" | | ???????????????####### ##????????"" | | ?????????????????????### % #???????? | | ???????????????######## ##?????????" | | ???????????????# """" ! #????????# | | ???????????????# g ### ####???### | | ???????????????# [[ #?##" * """#####X# | | ???????????????# !@;#??#" * | | ???????????????# !""""" #;; #?#"# | | ???????????????########## ##?#### * | | ????????????????????????# ##?????### | | ???????????????????????? ????????### | | ???????????????????????? #??????????## | | ????????????????????????# #???????????## | | ????????????????????????# #????????????##" | | ????????????????????????# #?????????????#""" | | ????????????????????????? ?????????????##" | | ????????????????????????? ?????????????#"" | | ????????????????????????? ?????????????#""" | | ????????????????????????? ?????????????""" | | ????????????????????????? ?????????????""" | | ????????????????????????? ?????????????"" | | ????????????????????????? ?????????????""" | | ???????????????????????????????????????"" | | ???????????????????????????????????????#"" | | ???????????????????????????????????????#"""" | | ????????????????????????????????????????# | | ?????????????????????????????????????????" | | ?????????????????????????????????????????"""" | | ?????????????????????????????????????????"" | | ?????????????????????????????????????????? | | ??????????????????????????????????????????"" | +----------------------------------------------------+ Best States ------------- Heat Dissipation 28 Energy Generation 14 Energy Capacity 280 Matter Stores 350 Matter Capacity 350 Sight Range 16 Terrain Scan Density 10 Armor Coverage 225 Core Shielding 20 Evasion (%) 40 Targeting Accuracy 5 Recoil Reduction 2 Item Schematics ----------------- Hcp. Storage Unit | -10/Materials | Hacked Plasma Cutter | -9/Materials | Scanalyzed Robot Schematics ------------------ None Fabricated ------------ Nothing Alien Tech Used ----------------- None Achievements -------------- None Challenges ------------ None Game ------ Seed CentriumGyrokineticBay Manual? 0 Play Time 00:46:42 Cumulative 109.7 hours Start 2020.12.12 @ 18:28:41 End 2020.12.12 @ 19:12:41 Sessions 1 Manual Loads 0 Difficulty Rogue Special Mode None Game No. 102 Rogue 102 Adventurer 0 Explorer 0 Win Type - Total 0 Types 0/0/0/0/0/0/0/0/0 Lore% 48 Gallery% 57 Achievement% 52 Wizard Run 0 Options --------- ASCII 0 Keyboard 1 Movement Numpad Keybinds 0 Fullscreen 1 Font 12/Terminus Map View 83x54 Tactical HUD 1 Map Filters NONE Filters NONE Steam 1 RUN: 022564a2-c183-4299-801c-0d381e3eb1e7